fUSD/lending_fUSD_20260118
["ID","MTS","AMOUNT","RATE_DAILY","PERIOD"]
[402642477,1768738241795,-1181.27542192,0.000175,2]
[402642478,1768738241804,-783.82776706,0.000175,2]
[402642479,1768738241814,-2439.0,0.00017508,2]
[402642480,1768738241823,-4915.957,0.00017508,2]
[402642481,1768738241833,-6562.0,0.00017508,2]
[402642482,1768738241842,-150.0,0.00017508,2]
[402642483,1768738241852,-600.0,0.00017534,2]
[402642484,1768738241861,-1000.0,0.00017534,2]
[402642485,1768738241871,-1680.0,0.00017547,2]
[402642486,1768738241881,-213.0,0.00017565,2]
[402642487,1768738241890,-150.0,0.00017565,2]
[402642488,1768738241901,-150.0,0.00017565,2]
[402642489,1768738241910,-150.0,0.00017565,2]
[402642490,1768738241920,-150.0,0.00017565,2]
[402642491,1768738241930,-150.0,0.00017565,2]
[402642492,1768738241939,-150.0,0.00017565,2]
[402642493,1768738241949,-150.0,0.00017565,2]
[402642494,1768738241959,-615.0,0.00017565,2]
[402642495,1768738241971,-1407.0,0.00017565,2]
[402642496,1768738241981,-1331.0,0.00017565,2]
[402642497,1768738241990,-3473.0,0.00017565,2]
[402642498,1768738242000,-412.0,0.00017565,2]
[402642499,1768738242009,-1268.0,0.00017565,2]
[402642500,1768738242019,-468.70089006,0.00017568,2]
[402642501,1768738242028,-1231.45242292,0.00017568,2]
[402642502,1768738242038,-1500.0,0.00017568,2]
[402642503,1768738242047,-1500.0,0.00017568,2]
[402642504,1768738242058,-150.0,0.00017604,2]
[402642505,1768738242068,-150.0,0.00017615,2]
[402642506,1768738242077,-3191.87447378,0.0001764,2]
[402642507,1768738242087,-595.37131296,0.00017647,2]
[402642508,1768738242097,-1000.0,0.00017668,2]
[402642509,1768738242107,-5888.0,0.00017686,2]
[402642510,1768738242118,-150.0,0.00017699,2]
[402642511,1768738242128,-1181.27542192,0.000177,2]
[402642512,1768738242138,-783.82776706,0.000177,2]
[402642513,1768738242149,-373.22,0.00017707,2]
[402642514,1768738242160,-1000.0,0.00017711,2]
[402642515,1768738242170,-150.0,0.00017745,2]
[402642516,1768738242180,-150.0,0.00017754,2]
[402642517,1768738242189,-2000.0,0.000178,2]
[402642518,1768738242198,-500.0,0.00017808,2]
[402642519,1768738242208,-600.0,0.00017808,2]
[402642520,1768738242217,-250.0,0.00017808,2]
[402642521,1768738242227,-1000.0,0.00017808,2]
[402642522,1768738242236,-200.0,0.00017809,2]
[402642523,1768738242245,-1000.0,0.00017817,2]
[402642524,1768738242255,-246.91358,0.0001782,2]
[402642525,1768738242265,-246.91358,0.0001782,2]
[402642526,1768738242275,-1000.0,0.00017838,2]
[402642527,1768738242284,-200.0,0.00017856,2]
[402642528,1768738242294,-500.0,0.00017863,2]
[402642529,1768738242303,-5800.0,0.00017866,2]
[402642530,1768738242313,-639.52,0.00017879,2]
[402642531,1768738242322,-325.07532428,0.00017883,2]
[402642532,1768738242332,-573.47140443,0.00017883,2]
[402642533,1768738242351,-857.87892396,0.00017883,2]
[402642534,1768738242361,-1160.7354,0.00017883,2]
[402642535,1768738242371,-1000.0,0.00017883,2]
[402642536,1768738242381,-500.0,0.00017899,2]
[402642537,1768738242390,-10000.0,0.000179,2]
[402642538,1768738242402,-1688.0063006,0.000179,2]
[402642539,1768738242413,-1412.25,0.000179,2]
[402642540,1768738242422,-1181.27542192,0.000179,2]
[402642541,1768738242432,-783.82776706,0.000179,2]
[402642542,1768738242442,-307.73291267,0.000179,2]
[402642543,1768738242451,-307.73291253,0.000179,2]
[402642544,1768738242461,-307.73291253,0.000179,2]
[402642545,1768738242471,-307.73291253,0.000179,2]
[402642546,1768738242481,-307.73291253,0.000179,2]
[402642547,1768738242491,-307.73291253,0.000179,2]
[402642548,1768738242501,-307.73291253,0.000179,2]
[402642549,1768738242510,-1249.39886294,0.000179,2]
[402642550,1768738242520,-307.73291253,0.000179,2]
[402642551,1768738242529,-3092.052693,0.000179,2]
[402642552,1768738242539,-307.73291253,0.000179,2]
[402642553,1768738242548,-307.73291253,0.000179,2]
[402642554,1768738242557,-307.73291253,0.000179,2]
[402642555,1768738242567,-307.73291253,0.000179,2]
[402642556,1768738242576,-829.5534708,0.000179,2]
[402642557,1768738242585,-307.73291253,0.000179,2]
[402642558,1768738242594,-307.73291253,0.000179,2]
[402642559,1768738242604,-307.73291253,0.000179,2]
[402642560,1768738242624,-307.73291253,0.000179,2]
[402642561,1768738242643,-211.61539095,0.000179,3]
[402642562,1768738242653,-307.73291253,0.000179,2]
[402642563,1768738242664,-307.73291253,0.000179,2]
[402642564,1768738242674,-307.73291253,0.000179,2]
[402642565,1768738242684,-307.73291253,0.000179,2]
[402642566,1768738242693,-500.0,0.000179,2]
[402642567,1768738242703,-500.0,0.000179,2]
[402642568,1768738242713,-500.0,0.000179,2]
[402642569,1768738242722,-500.0,0.000179,2]
[402642570,1768738242732,-500.0,0.000179,2]
[402642571,1768738242741,-500.0,0.000179,2]
[402642572,1768738242753,-4432.0,0.000179,2]
[402642573,1768738242765,-155.6514004,0.00017908,2]
[402642574,1768738242774,-500.0,0.00017918,2]
[402642575,1768738242783,-150.0,0.00017956,2]
[402642576,1768738242792,-661.50728786,0.0001797,2]
[402642577,1768738242802,-500.0,0.00017972,2]
[402642578,1768738242811,-765.0,0.00017973,2]
[402642579,1768738242821,-500.0,0.00017973,2]
[402642580,1768738242830,-500.0,0.00017973,2]
[402642581,1768738242840,-500.0,0.00017973,2]
[402642582,1768738242849,-150.0,0.00017973,2]
[402642583,1768738242858,-155.6514004,0.0001799,2]
[402642584,1768738242868,-155.6514004,0.0001799,2]
[402642585,1768738242878,-567.8712304,0.00017999,2]
[402642586,1768738242888,-261.35951101,0.00017999,2]
[402642587,1768738242902,-155.0,0.00017999,2]
[402642588,1768738242912,-300.0,0.00017999,2]
[402642589,1768738242923,-300.0,0.00017999,2]
[402642590,1768738242933,-300.0,0.00017999,2]
[402642591,1768738242943,-670.55457234,0.00017999,2]
[402642592,1768738242954,-300.0,0.00017999,2]
[402642593,1768738242964,-666.0,0.00017999,2]
[402642594,1768738242974,-500.0,0.00017999,2]
[402642595,1768738242984,-500.0,0.00017999,2]
[402642596,1768738242994,-500.0,0.00017999,2]
[402642597,1768738243003,-500.0,0.00017999,2]
[402642598,1768738243013,-500.0,0.00017999,2]
[402642599,1768738243023,-500.0,0.00017999,2]
[402642600,1768738243032,-500.0,0.00017999,2]
[402642601,1768738243042,-500.0,0.00017999,2]
[402642602,1768738243052,-500.0,0.00017999,2]
[402642603,1768738243062,-500.0,0.00017999,2]
[402642604,1768738243072,-500.0,0.00017999,2]
[402642605,1768738243081,-500.0,0.00017999,2]
[402642606,1768738243091,-500.0,0.00017999,2]
[402642607,1768738243101,-500.0,0.00017999,2]
[402642608,1768738243111,-1002.61682753,0.00018,2]
[402642609,1768738243121,-363210.56044672,0.00018,2]
[402642610,1768738243131,-174.17,0.00018,2]
[402642611,1768738243140,-1045449.26851342,0.00018,2]
[402642612,1768738243150,-312928.49085313,0.00018,2]
[402642613,1768738243159,-20351.51019349,0.00018,2]
[402642615,1768738243715,-348.07449977,0.00018,2]
[402642616,1768738244500,-1131.21765001,0.00018,2]
[402642617,1768738246419,-566.0,0.00017508,2]
[402642618,1768738246429,-4436.02263403,0.00018,2]
[402642619,1768738246580,-698913.9155845,0.00018,2]
[402642620,1768738246628,-879.4170014,0.00018,2]
[402642621,1768738280881,684.21619889,0.00010833,2]
[402642622,1768738280906,315.78380111,0.00010833,2]
[402642623,1768738281071,184.17611484,0.00010883,2]
[402642624,1768738281093,815.82388516,0.00010883,2]
[402642625,1768738281138,1000.0,0.00010968,2]
[402642626,1768738291808,1000.0,0.00011861,2]
[402642627,1768738330289,2101.90642162,0.00027397,120]
[402642628,1768738439476,3866.0,0.0001,2]
[402642642,1768738883797,179.46,7.717e-05,2]
[402642643,1768739026172,500.0,0.00027397,120]
[402642656,1768739431580,-1200.0,0.00013848,2]
[402642657,1768739431590,-264.0,0.00013849,2]
[402642658,1768739431600,-386.41393491,0.00013849,2]
[402642659,1768739431610,-681.67998429,0.00013849,2]
[402642660,1768739431620,-1019.75248789,0.00013849,2]
[402642661,1768739431631,-1379.7531,0.00013849,2]
[402642662,1768739431640,-197.17246221,0.00014,2]
[402642663,1768739431650,-152.595365,0.00015,2]
[402642664,1768739431660,-364.7336351,0.00015048,2]
[402642665,1768739431670,-1138.26261786,0.00015233,2]
[402642666,1768739431772,-541.73738214,0.00015233,2]
[402642667,1768739431783,-250.0,0.00015234,2]
[402642668,1768739431793,-150.49,0.00015477,2]
[402642669,1768739431803,-35.14814118,0.00015644,2]
[402642670,1768739431815,-158.60400216,0.00015644,2]
[402642671,1768739431825,-293.32,0.00015661,2]
[402642672,1768739431835,-293.32,0.00015661,2]
[402642673,1768739431844,-293.32,0.00015661,2]
[402642674,1768739431854,-293.32,0.00015661,2]
[402642675,1768739431863,-293.32,0.00015661,2]
[402642676,1768739431873,-208.04219052,0.00015669,2]
[402642677,1768739431883,-255.0,0.00015669,2]
[402642678,1768739431893,-500.0,0.0001567,2]
[402642679,1768739431904,-239.90874671,0.0001567,2]
[402642680,1768739431915,-180.49696679,0.0001567,2]
[402642681,1768739431926,-207.89511552,0.0001567,2]
[402642682,1768739431936,-500.0,0.0001567,2]
[402642683,1768739431947,-500.0,0.0001567,2]
[402642684,1768739431957,-500.0,0.0001567,2]
[402642685,1768739431967,-500.0,0.0001567,2]
[402642686,1768739431978,-500.0,0.0001567,2]
[402642687,1768739431989,-419.96763616,0.0001567,2]
[402642689,1768739432000,-500.0,0.0001567,2]
[402642690,1768739432011,-500.0,0.0001567,2]
[402642693,1768739432023,-500.0,0.0001567,2]
[402642695,1768739432034,-2380.31256874,0.00015671,2]
[402642696,1768739432047,-666.0,0.00015671,2]
[402642697,1768739432059,-2756.14411083,0.00015671,2]
[402642698,1768739432080,-4562.01934014,0.00015671,2]
[402642699,1768739432175,-131920.94371361,0.00015671,2]
[402642700,1768739432191,-15971.53316474,0.00015671,2]
[402642701,1768739432204,-8707.64323219,0.00015671,2]
[402642702,1768739432239,-1851.0,0.00015671,2]
[402642703,1768739432300,-839.93485565,0.00015671,2]
[402642704,1768739432321,-1091.33504491,0.00015671,2]
[402642705,1768739432363,-769.85588917,0.00015671,2]
[402642706,1768739437505,-26706.59313829,0.00015671,2]
[402642707,1768739437516,-8568.3,0.00015671,2]
[402642708,1768739437636,-392.85782781,0.00015671,2]
[402642709,1768739437677,-628.73244732,0.00015671,2]
[402642710,1768739437688,-1817.01184,0.00015671,2]
[402642711,1768739437699,-4317.53069797,0.00015671,2]
[402642713,1768739439561,-717.73210399,0.00015671,2]
[402642714,1768739439655,-1503.77332105,0.00015671,2]
[402642715,1768739439667,-623.85962557,0.00015671,2]
[402642716,1768739439678,-2786.1885218,0.00015671,2]
[402642717,1768739439689,-3835.67758016,0.00015671,2]
[402642718,1768739439700,-459.94361421,0.00015671,2]
[402642719,1768739439755,-659.53743416,0.00015671,2]
[402642720,1768739439785,-4150.21419357,0.00015671,2]
[402642721,1768739439893,-551.75042112,0.00015671,2]
[402642722,1768739439905,-634749.882613,0.00015671,2]
[402642723,1768739439914,-1018.2026,0.00015771,2]
[402642724,1768739439923,-24768.7787,0.00015771,2]
[402642725,1768739439933,-161.31560849,0.00015771,2]
[402642726,1768739439943,-391.996,0.00015771,2]
[402642727,1768739439953,-783.82776709,0.00015801,2]
[402642728,1768739439963,-166.67,0.00015803,2]
[402642729,1768739439973,-500.0,0.0001587,2]
[402642730,1768739439984,-500.0,0.0001587,2]
[402642731,1768739439993,-500.0,0.0001587,2]
[402642732,1768739440003,-500.0,0.0001587,2]
[402642733,1768739440011,-500.0,0.0001587,2]
[402642735,1768739440021,-179.37709203,0.0001587,2]
[402642737,1768739440031,-500.0,0.0001587,2]
[402642739,1768739440041,-500.0,0.0001587,2]
[402642741,1768739440051,-500.0,0.00015973,2]
[402642743,1768739440061,-500.0,0.00015973,2]
[402642745,1768739440070,-304.23142224,0.00015973,2]
[402642747,1768739440080,-500.0,0.00015973,2]
[402642749,1768739440089,-500.0,0.00015973,2]
[402642751,1768739440099,-208.04219045,0.00015988,2]
[402642753,1768739440109,-783.82776706,0.00016034,2]
[402642755,1768739440121,-150.0,0.000162,2]
[402642757,1768739440131,-150.0,0.000162,2]
[402642759,1768739440140,-265.56637009,0.000162,2]
[402642761,1768739440149,-236.45405301,0.000162,2]
[402642763,1768739440159,-150.0,0.000162,2]
[402642765,1768739440168,-5000.00173544,0.000162,5]
[402642768,1768739440178,-783.82776706,0.00016267,2]
[402642770,1768739440187,-208.04219045,0.00016306,2]
[402642772,1768739440196,-150.49,0.00016336,2]
[402642774,1768739440206,-833.0,0.000164,2]
[402642776,1768739440216,-1554.6,0.00016438,2]
[402642778,1768739440226,-212.23328331,0.00016438,2]
[402642780,1768739440235,-500.0,0.00016438,2]
[402642782,1768739440244,-500.0,0.00016438,2]
[402642784,1768739440253,-500.0,0.00016438,2]
[402642786,1768739440263,-500.0,0.00016438,2]
[402642788,1768739440272,-500.0,0.00016438,2]
[402642790,1768739440281,-500.0,0.00016438,2]
[402642792,1768739440291,-500.0,0.00016438,2]
[402642794,1768739440300,-500.0,0.00016438,2]
[402642796,1768739440309,-500.0,0.00016438,2]
[402642798,1768739440318,-500.0,0.00016438,2]
[402642800,1768739440327,-500.0,0.00016438,2]
[402642802,1768739440337,-500.0,0.00016438,2]
[402642803,1768739440346,-500.0,0.00016438,2]
[402642805,1768739440355,-500.0,0.00016438,2]
[402642807,1768739440365,-500.0,0.00016438,2]
[402642809,1768739440374,-500.0,0.00016438,2]
[402642811,1768739440383,-500.0,0.00016438,2]
[402642813,1768739440392,-504.31183971,0.00016438,2]
[402642814,1768739440402,-500.0,0.00016438,2]
[402642815,1768739440413,-500.0,0.00016438,2]
[402642816,1768739440423,-500.0,0.00016438,2]
[402642817,1768739440432,-500.0,0.00016438,2]
[402642818,1768739440442,-500.0,0.00016438,2]
[402642819,1768739440453,-500.0,0.00016438,2]
[402642820,1768739440463,-500.0,0.00016438,2]
[402642821,1768739440474,-500.0,0.00016438,2]
[402642822,1768739440483,-500.0,0.00016438,2]
[402642823,1768739440494,-500.0,0.00016438,2]
[402642824,1768739440503,-500.0,0.00016438,2]
[402642825,1768739440512,-500.0,0.00016438,2]
[402642826,1768739440522,-500.0,0.00016438,2]
[402642827,1768739440531,-500.0,0.00016438,2]
[402642828,1768739440540,-500.0,0.00016438,2]
[402642829,1768739440549,-600.0,0.00016438,2]
[402642830,1768739440559,-815.0,0.00016438,2]
[402642831,1768739440568,-3221.05,0.00016458,2]
[402642832,1768739440577,-1000.0,0.00016465,2]
[402642833,1768739440586,-783.82776706,0.00016501,2]
[402642834,1768739440595,-500.0,0.00016521,2]
[402642835,1768739440604,-382.76820555,0.00016521,2]
[402642836,1768739440614,-500.0,0.00016521,2]
[402642837,1768739440623,-500.0,0.00016521,2]
[402642838,1768739440632,-208.04219045,0.00016625,2]
[402642839,1768739440642,-166.67,0.00016673,2]
[402642840,1768739440651,-1554.6,0.00016712,2]
[402642841,1768739440660,-600.0,0.00016712,2]
[402642842,1768739440669,-783.82776706,0.00016734,2]
[402642843,1768739440678,-2351.0,0.00016757,2]
[402642844,1768739440687,-193.75214332,0.00016772,2]
[402642845,1768739440698,-208.04219045,0.00016944,2]
[402642846,1768739440708,-783.82776706,0.00016967,2]
[402642847,1768739440717,-1554.6,0.00016986,2]
[402642848,1768739440726,-600.0,0.00016986,2]
[402642849,1768739440735,-500.0,0.00017,7]
[402642850,1768739440745,-500.0,0.00017,7]
[402642851,1768739440755,-500.0,0.00017,7]
[402642852,1768739440765,-500.0,0.00017,7]
[402642853,1768739440774,-500.0,0.00017,7]
[402642854,1768739440783,-500.0,0.00017,7]
[402642855,1768739440793,-500.0,0.00017,7]
[402642856,1768739440802,-500.0,0.00017,7]
[402642857,1768739440811,-500.0,0.00017,7]
[402642858,1768739440820,-512.58,0.00017,7]
[402642859,1768739440830,-500.0,0.00017,7]
[402642860,1768739440839,-500.0,0.00017,7]
[402642861,1768739440848,-500.0,0.00017,7]
[402642862,1768739440857,-500.0,0.00017,7]
[402642863,1768739440866,-500.0,0.00017,7]
[402642864,1768739440875,-500.0,0.00017,7]
[402642865,1768739440885,-500.0,0.00017,7]
[402642866,1768739440894,-500.0,0.00017,7]
[402642867,1768739440903,-528766.4577571,0.00017,2]
[402642868,1768739440913,-500.0,0.00017,7]
[402642869,1768739440922,-500.0,0.00017,7]
[402642870,1768739440932,-500.0,0.00017,7]
[402642871,1768739440941,-500.0,0.00017,7]
[402642872,1768739440950,-500.0,0.00017,7]
[402642873,1768739440960,-500.0,0.00017,7]
[402642874,1768739440971,-500.0,0.00017,7]
[402642875,1768739440981,-500.0,0.00017,7]
[402642876,1768739440991,-500.0,0.00017,7]
[402642877,1768739441002,-500.0,0.00017,7]
[402642878,1768739441011,-500.0,0.00017,7]
[402642879,1768739441024,-500.0,0.00017,7]
[402642880,1768739441035,-500.0,0.00017,7]
[402642881,1768739441045,-500.0,0.00017,7]
[402642882,1768739441055,-500.0,0.00017,7]
[402642883,1768739441065,-500.0,0.00017,7]
[402642884,1768739441074,-500.0,0.00017,7]
[402642885,1768739441083,-500.0,0.00017,7]
[402642886,1768739441092,-500.0,0.00017,7]
[402642887,1768739441102,-660.99739858,0.00017099,2]
[402642888,1768739441113,-4001.0,0.00017099,2]
[402642889,1768739441122,-574.12855637,0.00017099,2]
[402642890,1768739441132,-164.45281015,0.00017162,2]
[402642891,1768739441141,-150.49,0.00017196,2]
[402642892,1768739441151,-783.82776706,0.000172,2]
[402642893,1768739441160,-1554.6,0.0001726,2]
[402642894,1768739441170,-600.0,0.0001726,2]
[402642895,1768739441180,-1000.0,0.0001726,2]
[402642896,1768739441188,-208.04219045,0.00017263,2]
[402642897,1768739441198,-783.82776706,0.00017434,2]
[402642898,1768739441207,-150.0,0.00017434,2]
[402642899,1768739441217,-841.0,0.00017436,2]
[402642900,1768739441226,-841.0,0.00017448,2]
[402642901,1768739441236,-2000.0,0.000175,2]
[402642902,1768739441245,-1554.6,0.00017534,2]
[402642903,1768739441254,-600.0,0.00017534,2]
[402642904,1768739441263,-1000.0,0.00017534,2]
[402642905,1768739441272,-166.67,0.00017542,2]
[402642906,1768739441281,-208.04219045,0.00017581,2]
[402642907,1768739441290,-3191.87447378,0.0001764,2]
[402642908,1768739441299,-595.37131296,0.00017647,2]
[402642909,1768739441309,-4128.0,0.00017666,2]
[402642910,1768739441319,-783.82776706,0.00017667,2]
[402642911,1768739441328,-201.0,0.00017671,2]
[402642912,1768739441337,-150.0,0.00017699,2]
[402642913,1768739441346,-150.0,0.00017699,2]
[402642914,1768739441355,-150.0,0.000177,2]
[402642915,1768739441365,-1000.0,0.00017727,2]
[402642916,1768739441375,-150.0,0.00017727,2]
[402642917,1768739441383,-1268.0,0.00017741,2]
[402642918,1768739441393,-1202.0,0.00017741,2]
[402642919,1768739441402,-915.0,0.00017741,2]
[402642920,1768739441413,-4915.957,0.00017741,2]
[402642921,1768739441423,-6562.0,0.00017741,2]
[402642922,1768739441434,-1407.0,0.00017741,2]
[402642923,1768739441444,-150.0,0.00017749,2]
[402642924,1768739441455,-150.0,0.00017754,2]
[402642925,1768739441465,-150.0,0.00017754,2]
[402642926,1768739441476,-409.96687693,0.00017755,2]
[402642927,1768739441487,-1000.0,0.00017766,2]
[402642928,1768739441497,-1000.0,0.00017784,2]
[402642929,1768739441507,-4128.0,0.00017802,2]
[402642930,1768739441516,-841.0,0.00017806,2]
[402642931,1768739441527,-1554.6,0.00017808,2]
[402642932,1768739441537,-500.0,0.00017808,2]
[402642933,1768739441547,-600.0,0.00017808,2]
[402642934,1768739441556,-1000.0,0.00017808,2]
[402642935,1768739441566,-200.0,0.00017809,2]
[402642936,1768739441575,-164.60905,0.0001782,2]
[402642937,1768739441584,-164.60905,0.0001782,2]
[402642938,1768739441593,-841.0,0.0001782,2]
[402642939,1768739441602,-5888.0,0.00017826,2]
[402642940,1768739441611,-150.0,0.00017834,2]
[402642941,1768739441620,-841.0,0.00017835,2]
[402642942,1768739441631,-5888.0,0.00017836,2]
[402642943,1768739441640,-1000.0,0.00017841,2]
[402642944,1768739441650,-1000.0,0.00017854,2]
[402642945,1768739441660,-200.0,0.00017856,2]
[402642946,1768739441669,-5800.0,0.00017858,2]
[402642947,1768739441678,-500.0,0.00017863,2]
[402642948,1768739441688,-1000.0,0.00017873,2]
[402642949,1768739441697,-841.0,0.00017886,2]
[402642950,1768739441706,-10000.0,0.000179,2]
[402642951,1768739441715,-4195.86162974,0.000179,2]
[402642952,1768739441724,-161.31560848,0.000179,2]
[402642953,1768739441733,-783.82776706,0.000179,2]
[402642954,1768739441742,-341.0,0.000179,2]
[402642955,1768739441751,-208.04219045,0.000179,2]
[402642956,1768739441760,-1249.39886294,0.000179,2]
[402642957,1768739441769,-211.61539095,0.000179,3]
[402642958,1768739441779,-1688.0063006,0.000179,2]
[402642959,1768739441790,-193.75214332,0.000179,2]
[402642960,1768739441801,-3092.052693,0.000179,2]
[402642961,1768739441811,-2480.83969998,0.000179,2]
[402642962,1768739441821,-307.73291267,0.000179,2]
[402642963,1768739441832,-4436.0,0.000179,2]
[402642964,1768739441843,-4128.0,0.00017903,2]
[402642965,1768739441853,-1000.0,0.00017914,2]
[402642966,1768739441862,-1000.0,0.00017915,2]
[402642967,1768739441871,-500.0,0.00017918,2]
[402642968,1768739441880,-1000.0,0.00017925,2]
[402642969,1768739441890,-1000.0,0.00017938,2]
[402642970,1768739441899,-150.0,0.00017964,2]
[402642971,1768739441908,-661.50728786,0.0001797,2]
[402642972,1768739441917,-500.0,0.00017972,2]
[402642973,1768739441927,-765.0,0.00017973,2]
[402642974,1768739441939,-500.0,0.00017973,2]
[402642975,1768739441950,-500.0,0.00017973,2]
[402642976,1768739441961,-150.0,0.00017973,2]
[402642977,1768739441971,-500.0,0.00017973,2]
[402642978,1768739441980,-500.0,0.00017973,2]
[402642979,1768739441989,-237.81029679,0.00017973,2]
[402642980,1768739441999,-500.0,0.00017973,2]
[402642981,1768739442008,-500.0,0.00017973,2]
[402642982,1768739442018,-567.8712304,0.00017973,2]
[402642983,1768739442027,-500.0,0.00017973,2]
[402642984,1768739442036,-150.0,0.00017973,2]
[402642985,1768739442045,-1000.0,0.00017975,2]
[402642986,1768739442055,-1000.0,0.00017978,2]
[402642987,1768739442064,-155.6514004,0.0001799,2]
[402642988,1768739442074,-155.6514004,0.0001799,2]
[402642989,1768739442083,-155.6514004,0.0001799,2]
[402642990,1768739442093,-841.0,0.00017995,2]
[402642991,1768739442102,-261.35951101,0.00017999,2]
[402642992,1768739442112,-155.0,0.00017999,2]
[402642993,1768739442122,-300.0,0.00017999,2]
[402642994,1768739442132,-500.0,0.00017999,2]
[402642995,1768739442141,-500.0,0.00017999,2]
[402642996,1768739442150,-500.0,0.00017999,2]
[402642997,1768739442160,-500.0,0.00017999,2]
[402642998,1768739442170,-500.0,0.00017999,2]
[402642999,1768739442179,-500.0,0.00017999,2]
[402643000,1768739442188,-500.0,0.00017999,2]
[402643001,1768739442198,-500.0,0.00017999,2]
[402643002,1768739442207,-500.0,0.00017999,2]
[402643003,1768739442216,-500.0,0.00017999,2]
[402643004,1768739442225,-500.0,0.00017999,2]
[402643005,1768739442235,-500.0,0.00017999,2]
[402643006,1768739442243,-500.0,0.00017999,2]
[402643007,1768739442253,-500.0,0.00017999,2]
[402643008,1768739442263,-500.0,0.00017999,2]
[402643009,1768739442272,-300.0,0.00017999,2]
[402643010,1768739442281,-666.0,0.00017999,2]
[402643011,1768739442292,-300.0,0.00017999,2]
[402643012,1768739442301,-666.0,0.00017999,2]
[402643013,1768739442310,-150.0,0.00018,2]
[402643014,1768739442319,-150.0,0.00018,2]
[402643015,1768739442328,-150.0,0.00018,2]
[402643016,1768739442338,-1002.61682753,0.00018,2]
[402643017,1768739442347,-455990.79547124,0.00018,2]
[402643018,1768739442357,-751922.38279969,0.00018,2]
[402643028,1768739442792,-2584.14950502,0.00018,2]
[402643029,1768739442803,-411.19354465,0.00018,2]
[402643030,1768739442814,-332.875,0.00018,2]
[402643034,1768739444100,-111.33191114,0.000179,2]
[402643035,1768739444112,-196.40100139,0.000179,2]
[402643036,1768739444125,-6818.17787107,0.00018,2]
[402643037,1768739444136,-773.11986588,0.00018,2]
[402643038,1768739444148,-198224.28362491,0.00018,2]
[402643039,1768739444160,-918.11599144,0.00018,2]
[402643040,1768739444171,-259.084,0.00018,2]
[402643041,1768739444232,-1243.86456691,0.00018,2]
[402643042,1768739445423,-423.599222,0.00018,2]
[402643043,1768739445479,-2375.92194646,0.00018,2]
[402643065,1768740382341,1049.39,0.0001204,2]
[402643071,1768740631700,-166.66,0.00014395,2]
[402643072,1768740631710,-491.57230958,0.00014603,2]
[402643073,1768740631725,-8.42769042,0.00014603,2]
[402643074,1768740631734,-166.66,0.00014698,2]
[402643075,1768740631745,-689.34,0.00014804,2]
[402643076,1768740631755,-215.36640459,0.00014901,2]
[402643077,1768740631766,-166.66,0.00015001,2]
[402643078,1768740631776,-1606.18537854,0.00015021,2]
[402643079,1768740631784,-166.66,0.00015304,2]
[402643080,1768740631796,-1200.0,0.0001537,2]
[402643081,1768740631805,-279.1594591,0.0001537,2]
[402643082,1768740631814,-2731.6904225,0.00015371,2]
[402643083,1768740631825,-1671.51544629,0.00015371,2]
[402643084,1768740631849,-3159.33507127,0.00015371,2]
[402643088,1768740631886,-39050.57258753,0.00015371,2]